fUSD/lending_fUSD_20260319
["ID","MTS","AMOUNT","RATE_DAILY","PERIOD"]
[408579593,1773903044038,-500.0,0.00013695,2]
[408579594,1773903044048,-500.0,0.00013695,2]
[408579595,1773903044058,-500.0,0.00013695,2]
[408579596,1773903044068,-500.0,0.00013695,2]
[408579597,1773903044078,-500.0,0.00013695,2]
[408579598,1773903044088,-500.0,0.00013695,2]
[408579599,1773903044097,-320.05942927,0.00013695,2]
[408579600,1773903044107,-500.0,0.00013695,2]
[408579601,1773903044116,-500.0,0.00013695,2]
[408579602,1773903044126,-500.0,0.00013695,2]
[408579603,1773903044136,-500.0,0.00013695,2]
[408579604,1773903044146,-500.0,0.00013695,2]
[408579605,1773903044156,-500.0,0.00013695,2]
[408579606,1773903044166,-500.0,0.00013695,2]
[408579607,1773903044175,-500.0,0.00013695,2]
[408579608,1773903044185,-451.64334977,0.00013695,2]
[408579609,1773903044195,-500.0,0.00013695,2]
[408579610,1773903044204,-909.0,0.00013695,2]
[408579611,1773903044213,-150.0,0.00013695,2]
[408579612,1773903044223,-500.0,0.00013695,2]
[408579613,1773903044233,-909.0,0.00013695,2]
[408579614,1773903044243,-500.0,0.00013695,2]
[408579615,1773903044253,-909.0,0.00013695,2]
[408579616,1773903044262,-500.0,0.00013695,2]
[408579617,1773903044272,-909.0,0.00013695,2]
[408579618,1773903044282,-500.0,0.00013695,2]
[408579619,1773903044291,-500.0,0.00013695,2]
[408579620,1773903044301,-500.0,0.00013695,2]
[408579621,1773903044310,-909.0,0.00013695,2]
[408579622,1773903044558,-500.0,0.00013695,2]
[408579623,1773903044569,-909.0,0.00013695,2]
[408579624,1773903044579,-238.49988002,0.00013695,2]
[408579625,1773903044589,-909.0,0.00013695,2]
[408579626,1773903044599,-500.0,0.00013695,2]
[408579627,1773903044611,-150.0,0.00013695,2]
[408579628,1773903044622,-909.0,0.00013695,2]
[408579629,1773903044631,-500.0,0.00013695,2]
[408579630,1773903044641,-500.0,0.00013695,2]
[408579631,1773903044651,-500.0,0.00013695,2]
[408579632,1773903044664,-909.0,0.00013695,2]
[408579633,1773903044674,-500.0,0.00013695,2]
[408579634,1773903044684,-909.0,0.00013695,2]
[408579635,1773903044696,-484.38346012,0.00013695,2]
[408579636,1773903044706,-909.0,0.00013695,2]
[408579637,1773903044715,-909.0,0.00013695,2]
[408579638,1773903044724,-909.0,0.00013695,2]
[408579639,1773903044734,-909.0,0.00013695,2]
[408579640,1773903044744,-909.0,0.00013695,2]
[408579641,1773903044753,-909.0,0.00013695,2]
[408579642,1773903044763,-909.0,0.00013695,2]
[408579643,1773903044773,-909.0,0.00013695,2]
[408579644,1773903044783,-909.0,0.00013695,2]
[408579645,1773903044792,-909.0,0.00013695,2]
[408579646,1773903044802,-909.0,0.00013695,2]
[408579647,1773903044811,-909.0,0.00013695,2]
[408579648,1773903044821,-909.0,0.00013695,2]
[408579649,1773903044831,-910.07406063,0.00013695,2]
[408579650,1773903044840,-500.0,0.00013695,2]
[408579651,1773903044850,-500.0,0.00013695,2]
[408579652,1773903044859,-500.0,0.00013695,2]
[408579653,1773903044869,-500.0,0.00013695,2]
[408579654,1773903044878,-500.0,0.00013695,2]
[408579655,1773903044888,-500.0,0.00013695,2]
[408579656,1773903044897,-500.0,0.00013695,2]
[408579657,1773903044906,-500.0,0.00013695,2]
[408579658,1773903044915,-500.0,0.00013695,2]
[408579659,1773903044925,-500.0,0.00013695,2]
[408579660,1773903044934,-500.0,0.00013695,2]
[408579661,1773903044943,-500.0,0.00013695,2]
[408579662,1773903044953,-500.0,0.00013695,2]
[408579663,1773903044962,-500.0,0.00013695,2]
[408579664,1773903044972,-500.0,0.00013695,2]
[408579665,1773903044981,-500.0,0.00013695,2]
[408579666,1773903044990,-520.81453038,0.00013695,2]
[408579668,1773903045000,-500.0,0.00013695,2]
[408579670,1773903045009,-214.94352647,0.00013695,2]
[408579672,1773903045019,-500.0,0.00013695,2]
[408579674,1773903045028,-500.0,0.00013695,2]
[408579676,1773903045037,-500.0,0.00013695,2]
[408579678,1773903045046,-500.0,0.00013695,2]
[408579680,1773903045056,-500.0,0.00013695,2]
[408579682,1773903045065,-500.0,0.00013695,2]
[408579685,1773903045074,-500.0,0.00013695,2]
[408579687,1773903045084,-500.0,0.00013695,2]
[408579689,1773903045093,-500.0,0.00013695,2]
[408579691,1773903045102,-500.0,0.00013695,2]
[408579693,1773903045113,-500.0,0.00013695,2]
[408579695,1773903045127,-500.0,0.00013695,2]
[408579697,1773903045136,-255.16033753,0.00013695,2]
[408579699,1773903045145,-500.0,0.00013695,2]
[408579701,1773903045155,-500.0,0.00013695,2]
[408579703,1773903045165,-500.0,0.00013695,2]
[408579705,1773903045174,-500.0,0.00013695,2]
[408579707,1773903045184,-500.0,0.00013695,2]
[408579709,1773903045193,-500.0,0.00013695,2]
[408579711,1773903045203,-500.0,0.00013695,2]
[408579713,1773903045212,-500.0,0.00013695,2]
[408579715,1773903045221,-500.0,0.00013695,2]
[408579717,1773903045231,-500.0,0.00013695,2]
[408579719,1773903045240,-500.0,0.00013695,2]
[408579721,1773903045250,-500.0,0.00013695,2]
[408579723,1773903045259,-500.0,0.00013695,2]
[408579725,1773903045269,-500.0,0.00013695,2]
[408579727,1773903045278,-500.0,0.00013695,2]
[408579729,1773903045288,-500.0,0.00013695,2]
[408579730,1773903045297,-500.0,0.00013695,2]
[408579731,1773903045308,-500.0,0.00013695,2]
[408579732,1773903045317,-500.0,0.00013695,2]
[408579733,1773903045326,-261.00219026,0.00013695,2]
[408579734,1773903045336,-500.0,0.00013695,2]
[408579735,1773903045345,-500.0,0.00013695,2]
[408579736,1773903045355,-500.0,0.00013695,2]
[408579737,1773903045364,-623.58090901,0.00013695,2]
[408579738,1773903045374,-500.0,0.00013695,2]
[408579740,1773903045384,-500.0,0.00013695,2]
[408579742,1773903045393,-500.0,0.00013695,2]
[408579744,1773903045403,-435.0,0.00013695,2]
[408579746,1773903045412,-364.3001579,0.00013695,2]
[408579748,1773903045421,-435.0,0.00013695,2]
[408579751,1773903045431,-500.0,0.00013695,2]
[408579752,1773903045441,-435.0,0.00013695,2]
[408579753,1773903045450,-435.0,0.00013695,2]
[408579754,1773903045460,-435.0,0.00013695,2]
[408579755,1773903045470,-435.0,0.00013695,2]
[408579756,1773903045480,-500.0,0.00013695,2]
[408579757,1773903045490,-435.0,0.00013695,2]
[408579758,1773903045499,-435.0,0.00013695,2]
[408579759,1773903045509,-435.0,0.00013695,2]
[408579760,1773903045518,-435.0,0.00013695,2]
[408579761,1773903045528,-435.0,0.00013695,2]
[408579762,1773903045537,-435.0,0.00013695,2]
[408579763,1773903045546,-435.0,0.00013695,2]
[408579764,1773903045557,-500.0,0.00013695,2]
[408579765,1773903045566,-435.0,0.00013695,2]
[408579766,1773903045576,-435.0,0.00013695,2]
[408579767,1773903045585,-435.0,0.00013695,2]
[408579768,1773903045599,-435.0,0.00013695,2]
[408579769,1773903045610,-257.5653502,0.00013695,2]
[408579770,1773903045623,-435.0,0.00013695,2]
[408579771,1773903045633,-435.0,0.00013695,2]
[408579772,1773903045642,-435.0,0.00013695,2]
[408579773,1773903045652,-435.0,0.00013695,2]
[408579774,1773903045661,-435.0,0.00013695,2]
[408579775,1773903045671,-435.0,0.00013695,2]
[408579776,1773903045680,-445.0,0.00013695,2]
[408579777,1773903045690,-500.0,0.00013698,2]
[408579778,1773903045700,-500.0,0.00013698,2]
[408579779,1773903045710,-500.0,0.00013698,2]
[408579780,1773903045719,-500.0,0.00013698,2]
[408579781,1773903045729,-500.79338971,0.00013698,2]
[408579782,1773903045738,-500.0,0.00013698,2]
[408579783,1773903045750,-500.0,0.00013698,2]
[408579784,1773903045760,-500.0,0.00013698,2]
[408579785,1773903045770,-505.19692822,0.00013698,2]
[408579786,1773903045780,-500.0,0.00013698,2]
[408579787,1773903045790,-500.0,0.00013698,2]
[408579788,1773903045800,-500.0,0.00013698,2]
[408579789,1773903045809,-507.21704968,0.00013698,2]
[408579790,1773903045819,-500.0,0.00013698,2]
[408579791,1773903045829,-500.0,0.00013698,2]
[408579792,1773903045839,-500.0,0.00013698,2]
[408579793,1773903045848,-500.0,0.00013698,2]
[408579794,1773903045858,-308.11684657,0.00013698,2]
[408579795,1773903045868,-500.0,0.00013698,2]
[408579796,1773903045878,-500.0,0.00013698,2]
[408579797,1773903045887,-500.0,0.00013698,2]
[408579798,1773903045898,-500.0,0.00013698,2]
[408579799,1773903045909,-500.0,0.00013698,2]
[408579800,1773903045919,-500.0,0.00013698,2]
[408579801,1773903045929,-507.46942592,0.00013698,2]
[408579802,1773903045938,-500.0,0.00013698,2]
[408579803,1773903045948,-500.0,0.00013698,2]
[408579804,1773903045957,-500.0,0.00013698,2]
[408579805,1773903045967,-500.0,0.00013698,2]
[408579806,1773903045977,-500.0,0.00013698,2]
[408579807,1773903045987,-500.0,0.00013698,2]
[408579808,1773903045996,-500.0,0.00013698,2]
[408579810,1773903046005,-500.0,0.00013698,2]
[408579812,1773903046015,-500.0,0.00013698,2]
[408579814,1773903046025,-500.0,0.00013698,2]
[408579816,1773903046035,-515.1515975,0.00013698,2]
[408579818,1773903046044,-500.0,0.00013698,2]
[408579820,1773903046053,-500.0,0.00013698,2]
[408579823,1773903046063,-500.0,0.00013698,2]
[408579825,1773903046074,-501.79858998,0.00013698,2]
[408579827,1773903046084,-239.13327104,0.00013698,2]
[408579828,1773903046094,-500.0,0.00013698,2]
[408579829,1773903046103,-500.0,0.00013698,2]
[408579830,1773903046113,-500.0,0.00013698,2]
[408579831,1773903046123,-500.0,0.00013698,2]
[408579832,1773903046132,-500.0,0.00013698,2]
[408579833,1773903046142,-500.0,0.00013698,2]
[408579834,1773903046151,-500.0,0.00013698,2]
[408579835,1773903046161,-500.0,0.00013698,2]
[408579836,1773903046171,-500.0,0.00013698,2]
[408579837,1773903046180,-500.0,0.00013698,2]
[408579838,1773903046190,-500.0,0.00013698,2]
[408579839,1773903046199,-500.0,0.00013698,2]
[408579840,1773903046208,-500.0,0.00013698,2]
[408579841,1773903046217,-500.0,0.00013698,2]
[408579842,1773903046227,-500.0,0.00013698,2]
[408579843,1773903046236,-500.0,0.00013698,2]
[408579844,1773903046246,-500.0,0.00013698,2]
[408579845,1773903046255,-500.0,0.00013698,2]
[408579846,1773903046265,-500.0,0.00013698,2]
[408579847,1773903046274,-500.0,0.00013698,2]
[408579848,1773903046283,-500.0,0.00013698,2]
[408579849,1773903046292,-500.0,0.00013698,2]
[408579850,1773903046301,-500.0,0.00013698,2]
[408579851,1773903046311,-548.16396228,0.00013698,2]
[408579852,1773903046321,-500.0,0.00013698,2]
[408579853,1773903046330,-500.0,0.00013698,2]
[408579854,1773903046340,-500.0,0.00013698,2]
[408579855,1773903046349,-497.57987952,0.00013698,2]
[408579856,1773903046358,-500.0,0.00013698,2]
[408579857,1773903046368,-500.0,0.00013698,2]
[408579858,1773903046377,-500.0,0.00013698,2]
[408579859,1773903046387,-500.0,0.00013698,2]
[408579860,1773903046396,-363.73620363,0.00013698,2]
[408579861,1773903046405,-500.0,0.00013698,2]
[408579862,1773903046414,-500.0,0.00013698,2]
[408579863,1773903046424,-500.0,0.00013698,2]
[408579864,1773903046435,-500.0,0.00013698,2]
[408579865,1773903046444,-500.0,0.00013698,2]
[408579866,1773903046453,-500.0,0.00013698,2]
[408579867,1773903046463,-510.13276666,0.00013698,2]
[408579868,1773903046473,-500.0,0.00013698,2]
[408579869,1773903046482,-500.0,0.00013698,2]
[408579870,1773903046492,-504.39062474,0.00013698,2]
[408579871,1773903046501,-500.0,0.00013698,2]
[408579872,1773903046511,-500.0,0.00013698,2]
[408579873,1773903046521,-500.0,0.00013698,2]
[408579874,1773903046531,-500.0,0.00013698,2]
[408579875,1773903046542,-500.0,0.00013698,2]
[408579876,1773903046552,-292.25237575,0.00013698,2]
[408579877,1773903046565,-500.0,0.00013698,2]
[408579878,1773903046575,-500.0,0.00013698,2]
[408579879,1773903046585,-500.0,0.00013698,2]
[408579880,1773903046595,-500.0,0.00013698,2]
[408579881,1773903046604,-500.0,0.00013698,2]
[408579882,1773903046617,-500.0,0.00013698,2]
[408579883,1773903046626,-500.0,0.00013698,2]
[408579884,1773903046636,-500.0,0.00013698,2]
[408579885,1773903046646,-500.0,0.00013698,2]
[408579886,1773903046658,-500.0,0.00013698,2]
[408579887,1773903046668,-500.0,0.00013698,2]
[408579889,1773903046677,-500.0,0.00013698,2]
[408579890,1773903046687,-500.0,0.00013698,2]
[408579892,1773903046697,-500.0,0.00013698,2]
[408579893,1773903046706,-500.0,0.00013698,2]
[408579894,1773903046715,-500.0,0.00013698,2]
[408579895,1773903046725,-500.0,0.00013698,2]
[408579896,1773903046734,-500.0,0.00013698,2]
[408579897,1773903046744,-500.0,0.00013698,2]
[408579898,1773903046754,-500.0,0.00013698,2]
[408579899,1773903046763,-500.0,0.00013698,2]
[408579900,1773903046773,-530.20751779,0.00013698,2]
[408579901,1773903046783,-500.0,0.00013698,2]
[408579902,1773903046792,-500.0,0.00013698,2]
[408579903,1773903046802,-500.0,0.00013698,2]
[408579904,1773903046811,-500.0,0.00013698,2]
[408579905,1773903046821,-605.91414037,0.00013698,2]
[408579906,1773903046831,-500.0,0.00013698,2]
[408579907,1773903046841,-500.0,0.00013698,2]
[408579908,1773903046850,-500.0,0.00013698,2]
[408579909,1773903046859,-500.0,0.00013698,2]
[408579910,1773903046868,-500.0,0.00013698,2]
[408579911,1773903046878,-500.0,0.00013698,2]
[408579912,1773903046887,-338.47316987,0.00013698,2]
[408579913,1773903046897,-500.0,0.00013698,2]
[408579914,1773903046906,-546.27391006,0.00013698,2]
[408579915,1773903046916,-500.0,0.00013698,2]
[408579916,1773903047000,-500.0,0.00013698,2]
[408579917,1773903047010,-500.0,0.00013698,2]
[408579918,1773903047020,-404.05309335,0.00013698,2]
[408579919,1773903047029,-500.0,0.00013698,2]
[408579920,1773903047039,-500.0,0.00013698,2]
[408579921,1773903047049,-519.55408255,0.00013698,2]
[408579922,1773903047059,-500.0,0.00013698,2]
[408579923,1773903047068,-500.0,0.00013698,2]
[408579924,1773903047078,-500.0,0.00013698,2]
[408579925,1773903047087,-500.0,0.00013698,2]
[408579926,1773903047101,-500.0,0.00013698,2]
[408579927,1773903047120,-500.0,0.00013698,2]
[408579928,1773903047130,-500.0,0.00013698,2]
[408579929,1773903047140,-500.0,0.00013698,2]
[408579930,1773903047150,-500.0,0.00013698,2]
[408579931,1773903047159,-500.0,0.00013698,2]
[408579932,1773903047169,-500.0,0.00013698,2]
[408579933,1773903047179,-500.0,0.00013698,2]
[408579934,1773903047188,-500.0,0.00013698,2]
[408579935,1773903047198,-500.0,0.00013698,2]
[408579936,1773903047208,-500.0,0.00013698,2]
[408579937,1773903047217,-500.0,0.00013698,2]
[408579938,1773903047226,-500.0,0.00013698,2]
[408579939,1773903047235,-500.0,0.00013698,2]
[408579940,1773903047244,-500.0,0.00013698,2]
[408579941,1773903047253,-500.0,0.00013698,2]
[408579942,1773903047263,-500.0,0.00013698,2]
[408579943,1773903047272,-500.0,0.00013698,2]
[408579944,1773903047281,-502.28440551,0.00013698,2]
[408579945,1773903047291,-500.0,0.00013698,2]
[408579946,1773903047299,-500.0,0.00013698,2]
[408579947,1773903047308,-500.0,0.00013698,2]
[408579948,1773903047317,-500.0,0.00013698,2]
[408579949,1773903047326,-500.0,0.00013698,2]
[408579950,1773903047336,-500.0,0.00013698,2]
[408579951,1773903047346,-500.0,0.00013698,2]
[408579952,1773903047356,-500.0,0.00013698,2]
[408579953,1773903047365,-500.0,0.00013698,2]
[408579954,1773903047375,-500.0,0.00013698,2]
[408579955,1773903047384,-500.0,0.00013698,2]
[408579956,1773903047394,-500.0,0.00013698,2]
[408579957,1773903047403,-500.0,0.00013698,2]
[408579958,1773903047413,-500.0,0.00013698,2]
[408579959,1773903047423,-227.04614939,0.00013699,2]
[408579960,1773903047432,-150.0,0.00013699,2]
[408579961,1773903047442,-150.0,0.00013699,2]
[408579962,1773903047452,-200.0,0.00013699,2]
[408579963,1773903047462,-4213.7,0.00013699,2]
[408579964,1773903047472,-157.48,0.00013699,2]
[408579965,1773903047481,-787.43,0.00013699,2]
[408579966,1773903047491,-500.0,0.00013699,2]
[408579967,1773903047500,-500.0,0.00013699,2]
[408579968,1773903047510,-500.64450222,0.00013699,2]
[408579969,1773903047519,-500.0,0.00013699,2]
[408579970,1773903047529,-598.32353377,0.00013699,2]
[408579971,1773903047538,-500.0,0.00013699,2]
[408579972,1773903047548,-500.0,0.00013699,2]
[408579973,1773903047558,-500.602946,0.00013699,2]
[408579974,1773903047567,-500.0,0.00013699,2]
[408579975,1773903047577,-500.0,0.00013699,2]
[408579976,1773903047587,-500.0,0.00013699,2]
[408579977,1773903047597,-500.0,0.00013699,2]
[408579978,1773903047607,-240.45947328,0.00013699,2]
[408579979,1773903047621,-517.58879621,0.00013699,2]
[408579980,1773903047630,-500.0,0.00013699,2]
[408579981,1773903047640,-500.0,0.00013699,2]
[408579982,1773903047650,-500.0,0.00013699,2]
[408579983,1773903047659,-162.36552885,0.00013699,2]
[408579984,1773903047669,-1000.0,0.00013699,7]
[408579985,1773903047679,-500.0,0.00013699,2]
[408579986,1773903047689,-339.06605453,0.00013699,2]
[408579987,1773903047699,-500.0,0.00013699,2]
[408579988,1773903047709,-500.0,0.00013699,2]
[408579989,1773903047719,-500.0,0.00013699,2]
[408579990,1773903047729,-500.0,0.00013699,2]
[408579991,1773903047739,-500.0,0.00013699,2]
[408579992,1773903047749,-500.0,0.00013699,2]
[408579993,1773903047759,-606.98804759,0.00013699,2]
[408579994,1773903047768,-500.0,0.00013699,2]
[408579995,1773903047777,-500.0,0.00013699,2]
[408579996,1773903047787,-500.0,0.00013699,2]
[408579997,1773903047797,-500.0,0.00013699,2]
[408579998,1773903047807,-515.7254833,0.00013699,2]
[408579999,1773903047816,-320.0,0.00013699,2]
[408580000,1773903047826,-364.86478079,0.00013699,2]
[408580001,1773903047835,-500.0,0.00013699,2]
[408580002,1773903047844,-500.0,0.00013699,2]
[408580003,1773903047854,-1170.2,0.000137,2]
[408580004,1773903047863,-3665.66,0.000137,2]
[408580005,1773903047873,-539566.55,0.000137,2]
[408580006,1773903047883,-4550.65,0.000137,2]
[408580007,1773903047892,-9535.42,0.000137,2]
[408580008,1773903047901,-5654.44,0.000137,2]
[408580009,1773903047911,-8552.64,0.000137,2]
[408580010,1773903047920,-11878.85235123,0.00013739,2]
[408580011,1773903047929,-154.42032794,0.0001378,2]
[408580012,1773903047938,-12318.36988823,0.00013794,2]
[408580013,1773903047947,-28035.86921723,0.0001381,2]
[408580014,1773903047956,-693.89191589,0.00013847,2]
[408580015,1773903047966,-12774.14957409,0.00013849,2]
[408580016,1773903047976,-500.0,0.00013863,2]
[408580017,1773903047985,-232.79,0.00013872,2]
[408580018,1773903047995,-334.0,0.00013888,2]
[408580019,1773903048004,-2500.0,0.000139,5]
[408580020,1773903048013,-9213.90882281,0.00013904,2]
[408580021,1773903048023,-240.32,0.00013913,2]
[408580022,1773903048032,-2411.21939631,0.00013931,2]
[408580023,1773903048041,-2900.0,0.00014082,2]
[408580024,1773903048050,-1100.0,0.00014082,2]
[408580025,1773903048060,-1800.0,0.00014082,2]
[408580026,1773903048069,-2411.21939631,0.0001415,2]
[408580027,1773903048078,-501.0,0.00014156,2]
[408580028,1773903048088,-5757.76952716,0.00014173,2]
[408580029,1773903048097,-501.23260465,0.00014221,2]
[408580030,1773903048106,-1000.0,0.00014247,2]
[408580031,1773903048115,-1000.0,0.00014247,2]
[408580032,1773903048125,-1000.0,0.00014247,2]
[408580033,1773903048135,-1000.0,0.00014247,2]
[408580034,1773903048145,-1005.49650087,0.00014247,2]
[408580035,1773903048155,-1000.0,0.00014247,2]
[408580036,1773903048164,-1000.0,0.00014247,2]
[408580037,1773903048174,-1000.0,0.00014247,2]
[408580038,1773903048184,-1000.0,0.00014247,2]
[408580039,1773903048193,-412.99392051,0.00014247,2]
[408580040,1773903048203,-1000.0,0.00014247,2]
[408580041,1773903048212,-1000.0,0.00014247,2]
[408580042,1773903048222,-1000.0,0.00014247,2]
[408580043,1773903048232,-1000.0,0.00014247,2]
[408580044,1773903048241,-1000.0,0.00014247,2]
[408580045,1773903048251,-1000.0,0.00014247,2]
[408580046,1773903048260,-1000.0,0.00014247,2]
[408580047,1773903048270,-1000.0,0.00014247,2]
[408580048,1773903048280,-1000.0,0.00014247,2]
[408580049,1773903048290,-1000.0,0.00014247,2]
[408580050,1773903048300,-1000.0,0.00014247,2]
[408580051,1773903048309,-170.55,0.00014294,2]
[408580052,1773903048318,-3736.08109309,0.00014352,2]
[408580053,1773903048328,-213.31726696,0.00014352,2]
[408580054,1773903048338,-2411.21939631,0.0001437,2]
[408580055,1773903048347,-28035.86921723,0.00014375,2]
[408580056,1773903048356,-1567.0,0.000144,2]
[408580057,1773903048366,-1567.0,0.000144,2]
[408580058,1773903048377,-4609.0,0.00014416,2]
[408580059,1773903048387,-689.0,0.00014417,2]
[408580060,1773903048397,-1600.0,0.00014455,2]
[408580061,1773903048406,-1109.0,0.000145,2]
[408580062,1773903048415,-1252.0,0.0001454,2]
[408580063,1773903048425,-600.0,0.00014546,2]
[408580064,1773903048434,-2411.21939631,0.00014589,2]
[408580065,1773903048443,-2402.0,0.0001461,2]
[408580066,1773903048453,-437.0,0.0001463,2]
[408580067,1773903048462,-279.43530212,0.00014671,2]
[408580068,1773903048472,-320.0,0.0001468,2]
[408580069,1773903048482,-1330.0,0.0001472,2]
[408580070,1773903048492,-300.0,0.00014721,2]
[408580071,1773903048501,-2000.0,0.00014733,2]
[408580072,1773903048510,-500.0,0.00014795,2]
[408580073,1773903048519,-1500.0,0.00014795,2]
[408580074,1773903048528,-1500.0,0.00014795,2]
[408580075,1773903048537,-500.0,0.00014795,2]
[408580076,1773903048547,-1500.0,0.00014795,2]
[408580077,1773903048556,-1500.0,0.00014795,2]
[408580078,1773903048565,-1500.0,0.00014795,2]
[408580079,1773903048575,-1500.0,0.00014795,2]
[408580080,1773903048584,-1500.0,0.00014795,2]
[408580081,1773903048594,-1500.0,0.00014795,2]
[408580082,1773903048603,-1500.0,0.00014795,2]
[408580083,1773903048618,-1500.0,0.00014795,2]
[408580084,1773903048629,-1500.0,0.00014795,2]
[408580085,1773903048644,-1500.0,0.00014795,2]
[408580086,1773903048662,-176.85294544,0.00014795,2]
[408580087,1773903048673,-1500.0,0.00014795,2]
[408580088,1773903048683,-1500.0,0.00014795,2]
[408580089,1773903048694,-1500.0,0.00014795,2]
[408580090,1773903048703,-1500.0,0.00014795,2]
[408580091,1773903048712,-2000.0,0.00014833,2]
[408580092,1773903048721,-299.0,0.00014847,2]
[408580093,1773903048730,-334.0,0.00014888,2]
[408580094,1773903048740,-279.43530212,0.0001489,2]
[408580095,1773903048749,-4550.65,0.000149,2]
[408580096,1773903048758,-9535.42,0.000149,2]
[408580097,1773903048767,-5654.44,0.000149,2]
[408580098,1773903048777,-8552.64,0.000149,2]
[408580099,1773903048786,-170.3354006,0.000149,2]
[408580100,1773903048795,-500.0,0.000149,5]
[408580101,1773903048804,-1815.794048,0.00014911,7]
[408580102,1773903048813,-2000.0,0.00014933,2]
[408580103,1773903048822,-28035.86921723,0.0001494,2]
[408580104,1773903048830,-210.765584,0.00014957,7]
[408580105,1773903048839,-500.0,0.00014959,2]
[408580106,1773903048848,-501.0,0.00014979,3]
[408580107,1773903048857,-500.0,0.00014999,2]
[408580108,1773903048866,-549.26309957,0.00014999,2]
[408580109,1773903048875,-203.61170672,0.00015,2]
[408580110,1773903048884,-500.0,0.00015,2]
[408580111,1773903048893,-500.0,0.00015,2]
[408580112,1773903048903,-500.0,0.00015,2]
[408580113,1773903048911,-500.0,0.00015,2]
[408580114,1773903048920,-500.0,0.00015,2]
[408580115,1773903048929,-500.0,0.00015,2]
[408580116,1773903048938,-500.0,0.00015,2]
[408580117,1773903048947,-500.0,0.00015,2]
[408580118,1773903048955,-500.0,0.00015,2]
[408580119,1773903048964,-500.0,0.00015,2]
[408580120,1773903048974,-500.0,0.00015,2]
[408580121,1773903048982,-612.39,0.00015,2]
[408580122,1773903048992,-500.0,0.00015,2]
[408580123,1773903049001,-500.0,0.00015,2]
[408580124,1773903049010,-423.72,0.00015,2]
[408580125,1773903049019,-477601.72774685,0.00015,3]
[408580126,1773903049028,-250.0,0.00015,2]
[408580127,1773903049038,-500.0,0.00015,2]
[408580128,1773903049047,-500.0,0.00015,2]
[408580129,1773903049056,-152.0,0.00015017,3]
[408580130,1773903049064,-2000.0,0.00015033,2]
[408580131,1773903049074,-5757.76952716,0.00015036,2]
[408580132,1773903049083,-2402.0,0.0001504,2]
[408580133,1773903049092,-3606.83331477,0.00015042,2]
[408580134,1773903049101,-879.01,0.00015068,2]
[408580135,1773903049110,-469.0,0.00015068,2]
[408580136,1773903049120,-181.5975,0.00015087,30]
[408580137,1773903049129,-1170.2,0.000151,2]
[408580138,1773903049138,-3665.66,0.000151,2]
[408580139,1773903049147,-539566.55,0.000151,2]
[408580140,1773903049156,-3609.92329877,0.000151,2]
[408580141,1773903049165,-279.43530212,0.0001511,2]
[408580142,1773903049174,-2173.0,0.00015118,2]
[408580143,1773903049183,-2000.0,0.00015133,2]